[Event "Live Chess"]
[Site "Chess.com"]
[Date "2023.05.21"]
[Round "-"]
[White "WilliWeisswurst"]
[Black "MarkLim1"]
[Result "0-1"]
[WhiteElo "1769"]
[BlackElo "1694"]
[TimeControl "300"]
[EndTime "4:13:03 PDT"]
[Termination "MarkLim1 won by resignation"]

1. e4 {[%clk 0:04:58.5]} 1... e6 {[%clk 0:04:59.2]} 2. Nf3 {[%clk 0:04:58]} 2...
d5 {[%clk 0:04:58.6]} 3. exd5 {[%clk 0:04:57.4]} 3... exd5 {[%clk 0:04:57.8]} 4.
d4 {[%clk 0:04:57.1]} 4... Bd6 {[%clk 0:04:57.2]} 5. c4 {[%clk 0:04:55.2]} 5...
Nf6 {[%clk 0:04:54.7]} 6. Nc3 {[%clk 0:04:54.3]} 6... O-O {[%clk 0:04:53.3]} 7.
cxd5 {[%clk 0:04:53.5]} 7... h6 {[%clk 0:04:52.3]} 8. Bd3 {[%clk 0:04:48.5]}
8... Re8+ {[%clk 0:04:45.3]} 9. Be3 {[%clk 0:04:48]} 9... Nbd7 {[%clk
0:04:40.9]} 10. O-O {[%clk 0:04:46.9]} 10... Nb6 {[%clk 0:04:40.2]} 11. Re1
{[%clk 0:04:37.8]} 11... Nbxd5 {[%clk 0:04:38.8]} 12. Nxd5 {[%clk 0:04:37.1]}
12... Nxd5 {[%clk 0:04:37.3]} 13. Bd2 {[%clk 0:04:36.4]} 13... Bg4 {[%clk
0:04:29.5]} 14. h3 {[%clk 0:04:19.4]} 14... Rxe1+ {[%clk 0:04:27.3]} 15. Bxe1
{[%clk 0:04:15.5]} 15... Bh5 {[%clk 0:04:25.5]} 16. Be2 {[%clk 0:04:11.8]} 16...
c6 {[%clk 0:04:18.2]} 17. Ne5 {[%clk 0:04:08.3]} 17... Bxe2 {[%clk 0:04:16.2]}
18. Qxe2 {[%clk 0:04:07.9]} 18... Qf6 {[%clk 0:04:11.4]} 19. Bc3 {[%clk
0:03:58.1]} 19... Re8 {[%clk 0:04:09.3]} 20. Qh5 {[%clk 0:03:47.9]} 20... Nxc3
{[%clk 0:04:05.9]} 21. bxc3 {[%clk 0:03:47.1]} 21... Bxe5 {[%clk 0:04:04.9]} 22.
dxe5 {[%clk 0:03:41.4]} 22... Rxe5 {[%clk 0:04:03.6]} 23. Qg4 {[%clk 0:03:37.9]}
23... Qe6 {[%clk 0:04:00]} 24. Qd1 {[%clk 0:03:31.2]} 24... g6 {[%clk
0:03:57.2]} 25. Rb1 {[%clk 0:03:06.7]} 25... b6 {[%clk 0:03:54.1]} 26. Qd2
{[%clk 0:02:56.3]} 26... Kg7 {[%clk 0:03:52]} 27. g3 {[%clk 0:02:38]} 27... h5
{[%clk 0:03:49.8]} 28. Kh2 {[%clk 0:02:35]} 28... Rf5 {[%clk 0:03:45.3]} 29. Re1
{[%clk 0:02:28.8]} 29... Qf6 {[%clk 0:03:43.4]} 30. Re2 {[%clk 0:02:26.6]} 30...
Rf3 {[%clk 0:03:41.8]} 31. Kg2 {[%clk 0:02:22.1]} 31... Rxc3 {[%clk 0:03:31.8]}
32. Re8 {[%clk 0:02:14.4]} 32... Rc5 {[%clk 0:03:27.4]} 33. Qe3 {[%clk
0:02:02.2]} 33... Rc3 {[%clk 0:03:20.7]} 34. Qd2 {[%clk 0:01:59.4]} 34... Rc5
{[%clk 0:03:13.7]} 35. Qd7 {[%clk 0:01:51.9]} 35... Rf5 {[%clk 0:03:06.7]} 36.
Qd2 {[%clk 0:01:35.6]} 36... Rd5 {[%clk 0:03:03.8]} 37. Qe2 {[%clk 0:01:33.8]}
37... Rg5 {[%clk 0:02:52]} 38. Ra8 {[%clk 0:01:29.5]} 38... a5 {[%clk
0:02:48.7]} 39. Ra6 {[%clk 0:01:26]} 39... c5 {[%clk 0:02:43.2]} 40. Ra8 {[%clk
0:01:22]} 40... Qc6+ {[%clk 0:02:37]} 41. Qf3 {[%clk 0:01:17.3]} 41... Qxf3+
{[%clk 0:02:35.8]} 42. Kxf3 {[%clk 0:01:17.2]} 42... Rf5+ {[%clk 0:02:34.9]} 43.
Ke3 {[%clk 0:01:15.7]} 43... Rf6 {[%clk 0:02:31.8]} 44. g4 {[%clk 0:01:10.8]}
44... hxg4 {[%clk 0:02:30.6]} 45. hxg4 {[%clk 0:01:10.2]} 45... Rc6 {[%clk
0:02:29.4]} 46. f4 {[%clk 0:01:06.6]} 46... Kf6 {[%clk 0:02:27.9]} 47. Ra6
{[%clk 0:01:03.6]} 47... c4 {[%clk 0:02:25.3]} 48. Kd4 {[%clk 0:01:00.7]} 48...
c3 {[%clk 0:02:24.1]} 0-1

[Event "Live Chess"]
[Site "Chess.com"]
[Date "2023.05.21"]
[Round "-"]
[White "Sweet-O"]
[Black "Abde2012"]
[Result "1-0"]
[WhiteElo "1428"]
[BlackElo "743"]
[TimeControl "300"]
[EndTime "4:13:27 PDT"]
[Termination "Sweet-O won by checkmate"]

1. d4 {[%clk 0:04:58.7]} 1... c6 {[%clk 0:04:59.1]} 2. Nc3 {[%clk 0:04:58.6]}
2... d5 {[%clk 0:04:58]} 3. Bf4 {[%clk 0:04:58.5]} 3... Bf5 {[%clk 0:04:55.2]}
4. e3 {[%clk 0:04:56.3]} 4... Nf6 {[%clk 0:04:54.8]} 5. f3 {[%clk 0:04:55.9]}
5... e6 {[%clk 0:04:54]} 6. g4 {[%clk 0:04:55.4]} 6... Bg6 {[%clk 0:04:47.2]} 7.
h4 {[%clk 0:04:55.3]} 7... h6 {[%clk 0:04:45.5]} 8. Bd3 {[%clk 0:04:54.5]} 8...
Bh7 {[%clk 0:04:42.7]} 9. Bxh7 {[%clk 0:04:52.5]} 9... Rxh7 {[%clk 0:04:42.3]}
10. Qd3 {[%clk 0:04:51.7]} 10... Nbd7 {[%clk 0:04:36.9]} 11. O-O-O {[%clk
0:04:50.8]} 11... Qa5 {[%clk 0:04:32.9]} 12. Nge2 {[%clk 0:04:49.8]} 12... Bb4
{[%clk 0:04:29.5]} 13. g5 {[%clk 0:04:48.4]} 13... hxg5 {[%clk 0:04:27.3]} 14.
hxg5 {[%clk 0:04:48.3]} 14... Rxh1 {[%clk 0:04:25.1]} 15. Rxh1 {[%clk
0:04:48.2]} 15... Ng8 {[%clk 0:04:22.3]} 16. Rh8 {[%clk 0:04:46]} 16... O-O-O
{[%clk 0:04:17.9]} 17. Qh7 {[%clk 0:04:43.8]} 17... Ne7 {[%clk 0:04:12.9]} 18.
Rxd8+ {[%clk 0:04:41.7]} 18... Kxd8 {[%clk 0:04:10.9]} 19. Qh8+ {[%clk
0:04:38.6]} 19... Ng8 {[%clk 0:03:59.2]} 20. Qxg8+ {[%clk 0:04:36]} 20... Nf8
{[%clk 0:03:58.2]} 21. Qxf7 {[%clk 0:04:30.6]} 21... b5 {[%clk 0:03:49.5]} 22.
Qxg7 {[%clk 0:04:26.1]} 22... Be7 {[%clk 0:03:34.1]} 23. Qe5 {[%clk 0:04:23.8]}
23... Ng6 {[%clk 0:03:31.1]} 24. Qb8+ {[%clk 0:04:21.8]} 24... Kd7 {[%clk
0:03:27.3]} 25. Qb7+ {[%clk 0:04:18]} 25... Ke8 {[%clk 0:03:25.9]} 26. Qxc6+
{[%clk 0:04:14.3]} 26... Kd8 {[%clk 0:03:25.4]} 27. Qxb5 {[%clk 0:04:12.7]}
27... Qxb5 {[%clk 0:03:22.6]} 28. Nxb5 {[%clk 0:04:12.6]} 28... Nxf4 {[%clk
0:03:19.5]} 29. Nxf4 {[%clk 0:04:11.6]} 29... Bxg5 {[%clk 0:03:17.9]} 30. Nxa7
{[%clk 0:04:05]} 30... Bxf4 {[%clk 0:03:15.8]} 31. exf4 {[%clk 0:04:04.9]} 31...
Ke7 {[%clk 0:03:13.7]} 32. Nc6+ {[%clk 0:04:03.9]} 32... Kf6 {[%clk 0:03:11.4]}
33. Nb4 {[%clk 0:04:03.8]} 33... Kf5 {[%clk 0:03:10.2]} 34. a4 {[%clk
0:04:01.5]} 34... Kxf4 {[%clk 0:03:09.2]} 35. a5 {[%clk 0:04:00.9]} 35... Kxf3
{[%clk 0:03:08.7]} 36. a6 {[%clk 0:04:00.1]} 36... Ke3 {[%clk 0:03:08.3]} 37. a7
{[%clk 0:03:58.5]} 37... Kxd4 {[%clk 0:03:07.9]} 38. a8=Q {[%clk 0:03:57]} 38...
e5 {[%clk 0:03:07.5]} 39. Qxd5+ {[%clk 0:03:55]} 39... Ke3 {[%clk 0:03:05.8]}
40. Qxe5+ {[%clk 0:03:53.4]} 40... Kf2 {[%clk 0:03:01.5]} 41. c4 {[%clk
0:03:52.2]} 41... Kf1 {[%clk 0:02:58.2]} 42. c5 {[%clk 0:03:50.6]} 42... Kf2
{[%clk 0:02:57.4]} 43. Nd3+ {[%clk 0:03:49.1]} 43... Kf3 {[%clk 0:02:55.3]} 44.
b4 {[%clk 0:03:48.1]} 44... Kg4 {[%clk 0:02:51.8]} 45. Kd2 {[%clk 0:03:44]}
45... Kf3 {[%clk 0:02:44.8]} 46. c6 {[%clk 0:03:42]} 46... Kg4 {[%clk
0:02:43.5]} 47. c7 {[%clk 0:03:41.1]} 47... Kf3 {[%clk 0:02:42.1]} 48. c8=R
{[%clk 0:03:38.7]} 48... Kg4 {[%clk 0:02:40.9]} 49. Qf6 {[%clk 0:03:34.2]} 49...
Kg3 {[%clk 0:02:37.9]} 50. Rg8+ {[%clk 0:03:32.6]} 50... Kh3 {[%clk 0:02:34.9]}
51. Qh6# {[%clk 0:03:32.5]} 1-0

[Event "Live Chess"]
[Site "Chess.com"]
[Date "2023.05.21"]
[Round "-"]
[White "YrrriKharkiv"]
[Black "Goblinbasher"]
[Result "1-0"]
[WhiteElo "2061"]
[BlackElo "1228"]
[TimeControl "300"]
[EndTime "4:13:28 PDT"]
[Termination "YrrriKharkiv won by resignation"]

1. d4 {[%clk 0:04:55.6]} 1... f5 {[%clk 0:04:58.4]} 2. g4 {[%clk 0:04:52.5]}
2... fxg4 {[%clk 0:04:54.1]} 3. h3 {[%clk 0:04:51.3]} 3... gxh3 {[%clk
0:04:52.5]} 4. Bxh3 {[%clk 0:04:49.9]} 4... Nf6 {[%clk 0:04:50.6]} 5. Nc3 {[%clk
0:04:46.9]} 5... e6 {[%clk 0:04:47.8]} 6. e4 {[%clk 0:04:45.8]} 6... Bb4 {[%clk
0:04:44.1]} 7. Bg5 {[%clk 0:04:39.3]} 7... Bxc3+ {[%clk 0:04:40.6]} 8. bxc3
{[%clk 0:04:37.6]} 8... O-O {[%clk 0:04:38.9]} 9. e5 {[%clk 0:04:25.7]} 9... Nc6
{[%clk 0:04:26.8]} 10. exf6 {[%clk 0:04:23.5]} 10... Rxf6 {[%clk 0:04:23.5]} 11.
Bxf6 {[%clk 0:04:21.7]} 11... Qxf6 {[%clk 0:04:22.5]} 12. Qf3 {[%clk 0:04:21.1]}
12... Qg6 {[%clk 0:04:12.8]} 13. Qd3 {[%clk 0:04:15.9]} 13... Qf6 {[%clk
0:04:02.7]} 14. Ne2 {[%clk 0:04:07.9]} 14... g6 {[%clk 0:03:59.4]} 15. Rg1
{[%clk 0:03:54.4]} 15... Ne7 {[%clk 0:03:51.4]} 16. c4 {[%clk 0:03:45.6]} 16...
Nf5 {[%clk 0:03:45.2]} 17. Bxf5 {[%clk 0:03:43.6]} 17... exf5 {[%clk 0:03:42.8]}
18. c3 {[%clk 0:03:38.3]} 18... d6 {[%clk 0:03:41.4]} 19. Nf4 {[%clk 0:03:33.7]}
19... Bd7 {[%clk 0:03:30.8]} 20. Nd5 {[%clk 0:03:27.3]} 20... Re8+ {[%clk
0:03:23.4]} 21. Kf1 {[%clk 0:03:18.5]} 21... Qe6 {[%clk 0:03:10.2]} 22. Kg2
{[%clk 0:03:05.2]} 22... Bc6 {[%clk 0:03:04.7]} 23. Qf3 {[%clk 0:03:01.4]} 23...
Qf6 {[%clk 0:02:58.9]} 24. Rae1 {[%clk 0:02:52.1]} 24... Qg5+ {[%clk 0:02:53.1]}
25. Qg3 {[%clk 0:02:51.1]} 25... Bxd5+ {[%clk 0:02:46.4]} 26. cxd5 {[%clk
0:02:48]} 26... Rxe1 {[%clk 0:02:44.7]} 27. Qxg5 {[%clk 0:02:45.1]} 27... Kf7
{[%clk 0:02:40.2]} 28. Rxe1 {[%clk 0:02:43.1]} 1-0

[Event "Live Chess"]
[Site "Chess.com"]
[Date "2023.05.21"]
[Round "-"]
[White "Brooms1989"]
[Black "SupremeTactician"]
[Result "0-1"]
[WhiteElo "1138"]
[BlackElo "2230"]
[TimeControl "300"]
[EndTime "4:13:49 PDT"]
[Termination "SupremeTactician won by resignation"]

1. e4 {[%clk 0:04:56.5]} 1... e5 {[%clk 0:04:59.2]} 2. Nc3 {[%clk 0:04:53.2]}
2... Nc6 {[%clk 0:04:58.4]} 3. Nf3 {[%clk 0:04:51.4]} 3... Bc5 {[%clk
0:04:56.9]} 4. Bc4 {[%clk 0:04:49.9]} 4... d6 {[%clk 0:04:55.7]} 5. h3 {[%clk
0:04:48.2]} 5... Nf6 {[%clk 0:04:54.6]} 6. O-O {[%clk 0:04:47.6]} 6... Be6
{[%clk 0:04:53.8]} 7. Bb3 {[%clk 0:04:45]} 7... O-O {[%clk 0:04:52.9]} 8. d3
{[%clk 0:04:43.6]} 8... Qd7 {[%clk 0:04:52.1]} 9. Bg5 {[%clk 0:04:40.3]} 9...
Ne8 {[%clk 0:04:47.6]} 10. Bxe6 {[%clk 0:04:33.2]} 10... Qxe6 {[%clk 0:04:44.8]}
11. Nd5 {[%clk 0:04:32]} 11... f6 {[%clk 0:04:44.1]} 12. Bh4 {[%clk 0:04:25.4]}
12... Ne7 {[%clk 0:04:43.3]} 13. Nxe7+ {[%clk 0:04:23.5]} 13... Qxe7 {[%clk
0:04:42.7]} 14. d4 {[%clk 0:04:18]} 14... exd4 {[%clk 0:04:39.2]} 15. Nxd4
{[%clk 0:04:17.9]} 15... Qxe4 {[%clk 0:04:38.8]} 16. Nf3 {[%clk 0:04:09.3]}
16... g5 {[%clk 0:04:34.5]} 17. Bg3 {[%clk 0:03:49.4]} 17... Ng7 {[%clk
0:04:32.3]} 18. Re1 {[%clk 0:03:45.2]} 18... Qc6 {[%clk 0:04:31.2]} 19. Qd3
{[%clk 0:03:31.9]} 19... Rae8 {[%clk 0:04:28.6]} 20. Rxe8 {[%clk 0:03:28.5]}
20... Rxe8 {[%clk 0:04:28.5]} 21. Re1 {[%clk 0:03:27.4]} 21... Rxe1+ {[%clk
0:04:26.9]} 22. Nxe1 {[%clk 0:03:27.3]} 22... f5 {[%clk 0:04:15.6]} 23. Bh2
{[%clk 0:03:09.6]} 23... Qe4 {[%clk 0:04:06.5]} 24. Qb3+ {[%clk 0:03:04.2]}
24... Qe6 {[%clk 0:04:00.2]} 25. Qxe6+ {[%clk 0:02:56.5]} 25... Nxe6 {[%clk
0:04:00.1]} 26. Nd3 {[%clk 0:02:55.6]} 26... Bb6 {[%clk 0:03:59.1]} 27. b3
{[%clk 0:02:52.8]} 27... Kf7 {[%clk 0:03:53.5]} 28. c4 {[%clk 0:02:51.5]} 28...
Bd4 {[%clk 0:03:51.7]} 29. g4 {[%clk 0:02:46.7]} 29... f4 {[%clk 0:03:49.8]} 30.
Kg2 {[%clk 0:02:43.1]} 30... Kf6 {[%clk 0:03:42.9]} 31. f3 {[%clk 0:02:41.8]}
31... Nc5 {[%clk 0:03:41.4]} 32. Nxc5 {[%clk 0:02:39.2]} 32... Bxc5 {[%clk
0:03:39.5]} 33. Bg1 {[%clk 0:02:37.3]} 33... Bxg1 {[%clk 0:03:38.6]} 34. Kxg1
{[%clk 0:02:36.8]} 34... Ke5 {[%clk 0:03:38.5]} 35. Kf2 {[%clk 0:02:36.3]} 35...
Kd4 {[%clk 0:03:37.9]} 36. Ke2 {[%clk 0:02:35.9]} 36... Kc3 {[%clk 0:03:37.2]}
37. Kd1 {[%clk 0:02:35]} 37... Kd3 {[%clk 0:03:35.8]} 38. Ke1 {[%clk 0:02:29.2]}
38... Ke3 {[%clk 0:03:35.3]} 39. Kf1 {[%clk 0:02:27.7]} 39... Kxf3 {[%clk
0:03:34.6]} 40. Kg1 {[%clk 0:02:26.6]} 40... Kg3 {[%clk 0:03:34.1]} 41. Kh1
{[%clk 0:02:25.5]} 41... f3 {[%clk 0:03:33.4]} 42. Kg1 {[%clk 0:02:24.7]} 42...
Kxh3 {[%clk 0:03:32.6]} 43. Kf2 {[%clk 0:02:23.8]} 43... Kxg4 {[%clk 0:03:32.1]}
44. Kf1 {[%clk 0:02:22.4]} 44... Kf4 {[%clk 0:03:30.4]} 45. Kf2 {[%clk
0:02:21.7]} 45... g4 {[%clk 0:03:30.2]} 46. Kf1 {[%clk 0:02:21]} 46... g3 {[%clk
0:03:30]} 47. Kg1 {[%clk 0:02:20.2]} 47... Ke3 {[%clk 0:03:29.9]} 48. Kf1 {[%clk
0:02:19.6]} 48... g2+ {[%clk 0:03:29.3]} 49. Kg1 {[%clk 0:02:18.9]} 49... Ke2
{[%clk 0:03:28.4]} 0-1

[Event "Live Chess"]
[Site "Chess.com"]
[Date "2023.05.21"]
[Round "-"]
[White "WilliamofOrange16th"]
[Black "peter-785"]
[Result "1-0"]
[WhiteElo "1865"]
[BlackElo "1189"]
[TimeControl "300"]
[EndTime "4:13:52 PDT"]
[Termination "WilliamofOrange16th won by resignation"]

1. e4 {[%clk 0:04:52.7]} 1... c5 {[%clk 0:04:56.6]} 2. b4 {[%clk 0:04:35.5]}
2... d6 {[%clk 0:04:46]} 3. bxc5 {[%clk 0:04:29.8]} 3... dxc5 {[%clk 0:04:44.4]}
4. Nf3 {[%clk 0:04:25.1]} 4... e6 {[%clk 0:04:42.1]} 5. c3 {[%clk 0:04:21.9]}
5... Nf6 {[%clk 0:04:39.5]} 6. e5 {[%clk 0:04:20.5]} 6... Nfd7 {[%clk
0:04:35.4]} 7. d4 {[%clk 0:04:19.4]} 7... b6 {[%clk 0:04:28.8]} 8. Be2 {[%clk
0:04:11.2]} 8... cxd4 {[%clk 0:04:25.3]} 9. cxd4 {[%clk 0:04:09.5]} 9... Bb4+
{[%clk 0:04:18.7]} 10. Bd2 {[%clk 0:04:07.9]} 10... Bxd2+ {[%clk 0:04:17.7]} 11.
Qxd2 {[%clk 0:04:06.5]} 11... O-O {[%clk 0:04:16.2]} 12. Nc3 {[%clk 0:04:05.5]}
12... Bb7 {[%clk 0:04:06.1]} 13. Nb5 {[%clk 0:04:04]} 13... Nc6 {[%clk
0:03:55.3]} 14. Nd6 {[%clk 0:04:02.4]} 14... Rb8 {[%clk 0:03:30.8]} 15. O-O
{[%clk 0:04:01]} 15... Ne7 {[%clk 0:03:22.6]} 16. Ng5 {[%clk 0:03:50.9]} 16...
Bd5 {[%clk 0:03:08.2]} 17. Bf3 {[%clk 0:03:46.3]} 17... f6 {[%clk 0:02:54.8]}
18. Bxd5 {[%clk 0:03:41.6]} 18... fxg5 {[%clk 0:02:33.8]} 19. Bxe6+ {[%clk
0:03:39.7]} 19... Kh8 {[%clk 0:02:32.3]} 20. Qxg5 {[%clk 0:03:34.5]} 20... Ng6
{[%clk 0:02:07.4]} 21. Qxd8 {[%clk 0:03:32.2]} 21... Rbxd8 {[%clk 0:02:03]} 22.
Nf7+ {[%clk 0:03:31.1]} 22... Rxf7 {[%clk 0:02:01.8]} 23. Bxf7 {[%clk 0:03:31]}
23... Ndf8 {[%clk 0:01:48.5]} 24. Rfd1 {[%clk 0:03:28.2]} 24... Rd7 {[%clk
0:01:37]} 25. Bxg6 {[%clk 0:03:26.2]} 25... Nxg6 {[%clk 0:01:34.2]} 26. g3
{[%clk 0:03:22.1]} 26... Kg8 {[%clk 0:01:33.1]} 27. e6 {[%clk 0:03:20.8]} 27...
Kh8 {[%clk 0:01:31.9]} 28. exd7 {[%clk 0:03:19.5]} 1-0

[Event "Live Chess"]
[Site "Chess.com"]
[Date "2023.05.21"]
[Round "-"]
[White "diana21strabt"]
[Black "EdenHazard8"]
[Result "0-1"]
[WhiteElo "1769"]
[BlackElo "1946"]
[TimeControl "300"]
[EndTime "4:13:53 PDT"]
[Termination "EdenHazard8 won by resignation"]

1. e4 {[%clk 0:04:58.8]} 1... e5 {[%clk 0:04:57.1]} 2. Nf3 {[%clk 0:04:57.8]}
2... Nc6 {[%clk 0:04:55.1]} 3. d4 {[%clk 0:04:57]} 3... exd4 {[%clk 0:04:53.2]}
4. Bc4 {[%clk 0:04:56.3]} 4... d6 {[%clk 0:04:50.8]} 5. O-O {[%clk 0:04:55.3]}
5... Nf6 {[%clk 0:04:49.5]} 6. Nxd4 {[%clk 0:04:54.4]} 6... Be7 {[%clk
0:04:46.9]} 7. Nc3 {[%clk 0:04:50.7]} 7... O-O {[%clk 0:04:45.6]} 8. Nxc6 {[%clk
0:04:47.8]} 8... bxc6 {[%clk 0:04:44.5]} 9. Re1 {[%clk 0:04:45.7]} 9... Bg4
{[%clk 0:04:42.9]} 10. f3 {[%clk 0:04:44.3]} 10... Bh5 {[%clk 0:04:41.7]} 11.
Bf4 {[%clk 0:04:41.8]} 11... d5 {[%clk 0:04:35.7]} 12. exd5 {[%clk 0:04:38.2]}
12... cxd5 {[%clk 0:04:35.6]} 13. Nxd5 {[%clk 0:04:34]} 13... Bc5+ {[%clk
0:04:34.1]} 14. Kh1 {[%clk 0:04:29]} 14... c6 {[%clk 0:04:23.4]} 15. Nxf6+
{[%clk 0:04:27.1]} 15... Qxf6 {[%clk 0:04:23.3]} 16. Be5 {[%clk 0:04:20.9]}
16... Qh4 {[%clk 0:04:18.4]} 17. Bg3 {[%clk 0:04:10.4]} 17... Qxc4 {[%clk
0:04:16.8]} 18. Qd3 {[%clk 0:04:06.4]} 18... Qxd3 {[%clk 0:04:15]} 19. cxd3
{[%clk 0:04:05.6]} 19... Bg6 {[%clk 0:04:14.6]} 20. Rac1 {[%clk 0:04:03.6]}
20... Bd4 {[%clk 0:04:13.3]} 21. Rxc6 {[%clk 0:04:02]} 21... Bxb2 {[%clk
0:04:12.3]} 22. Rd6 {[%clk 0:03:56]} 22... Rae8 {[%clk 0:04:08.5]} 23. Kg1
{[%clk 0:03:52.3]} 23... Rxe1+ {[%clk 0:04:06.8]} 24. Bxe1 {[%clk 0:03:51.4]}
24... Rc8 {[%clk 0:04:04.4]} 25. Bb4 {[%clk 0:03:48.9]} 25... h5 {[%clk
0:03:58]} 26. Kf2 {[%clk 0:03:46.4]} 26... Rc2+ {[%clk 0:03:56.7]} 27. Kg3
{[%clk 0:03:44.7]} 27... Be5+ {[%clk 0:03:54.8]} 28. f4 {[%clk 0:03:42.4]} 28...
Bxd6 {[%clk 0:03:54.7]} 29. Bxd6 {[%clk 0:03:41.5]} 29... Bxd3 {[%clk
0:03:54.3]} 0-1

[Event "Live Chess"]
[Site "Chess.com"]
[Date "2023.05.21"]
[Round "-"]
[White "CheckThis4"]
[Black "chessfiction"]
[Result "1-0"]
[WhiteElo "2506"]
[BlackElo "2313"]
[TimeControl "300"]
[EndTime "4:14:13 PDT"]
[Termination "CheckThis4 won by resignation"]

1. d4 {[%clk 0:04:58.5]} 1... d5 {[%clk 0:04:58.8]} 2. c4 {[%clk 0:04:56.7]}
2... e5 {[%clk 0:04:56.6]} 3. dxe5 {[%clk 0:04:55.2]} 3... d4 {[%clk 0:04:56]}
4. Nf3 {[%clk 0:04:54]} 4... Nc6 {[%clk 0:04:55.4]} 5. g3 {[%clk 0:04:53.2]}
5... Bg4 {[%clk 0:04:54.7]} 6. Bg2 {[%clk 0:04:52.4]} 6... Bb4+ {[%clk
0:04:53.9]} 7. Nbd2 {[%clk 0:04:50.1]} 7... Nge7 {[%clk 0:04:52.4]} 8. O-O
{[%clk 0:04:48.4]} 8... O-O {[%clk 0:04:50.8]} 9. Nb3 {[%clk 0:04:41]} 9... a5
{[%clk 0:04:47]} 10. a3 {[%clk 0:04:39.2]} 10... a4 {[%clk 0:04:45.7]} 11. Nbxd4
{[%clk 0:04:34.9]} 11... Bc5 {[%clk 0:04:33.8]} 12. Nxc6 {[%clk 0:04:17.1]}
12... Nxc6 {[%clk 0:04:33.7]} 13. Bg5 {[%clk 0:04:11.9]} 13... Qxd1 {[%clk
0:04:29.3]} 14. Rfxd1 {[%clk 0:04:05.8]} 14... Bxf3 {[%clk 0:04:29.2]} 15. Bxf3
{[%clk 0:04:02]} 15... Nxe5 {[%clk 0:04:29.1]} 16. Bxb7 {[%clk 0:03:52.7]} 16...
Rab8 {[%clk 0:04:27.2]} 17. Bd5 {[%clk 0:03:51.4]} 17... Rxb2 {[%clk 0:04:24.1]}
18. Kf1 {[%clk 0:03:34.5]} 18... h6 {[%clk 0:04:14.8]} 19. Bf4 {[%clk
0:03:32.8]} 19... Ng4 {[%clk 0:04:11.7]} 20. f3 {[%clk 0:03:10]} 20... Nxh2+
{[%clk 0:03:57.4]} 21. Kg2 {[%clk 0:03:09.1]} 21... Rxe2+ {[%clk 0:03:55.7]} 22.
Kh3 {[%clk 0:03:08.4]} 22... g5 {[%clk 0:03:43.6]} 23. Bxc7 {[%clk 0:03:06.1]}
23... h5 {[%clk 0:03:41.7]} 24. g4 {[%clk 0:02:58.3]} 24... hxg4+ {[%clk
0:03:02.6]} 25. fxg4 {[%clk 0:02:58.2]} 25... Kg7 {[%clk 0:03:01.1]} 26. Bxh2
{[%clk 0:02:16.4]} 26... Rh8+ {[%clk 0:02:58.9]} 27. Kg3 {[%clk 0:02:15.1]}
27... Rexh2 {[%clk 0:02:51.9]} 28. Bg2 {[%clk 0:02:10.5]} 28... Be3 {[%clk
0:02:30.4]} 29. Rh1 {[%clk 0:01:57.5]} 29... Bf4+ {[%clk 0:02:29.3]} 30. Kf2
{[%clk 0:01:56.6]} 30... Rxh1 {[%clk 0:02:25.8]} 31. Bxh1 {[%clk 0:01:44.4]}
31... Rh3 {[%clk 0:02:20.1]} 32. Bf3 {[%clk 0:01:41]} 32... Rh2+ {[%clk
0:02:18.6]} 33. Bg2 {[%clk 0:01:39.9]} 33... Rh6 {[%clk 0:02:09.8]} 34. c5
{[%clk 0:01:38.2]} 34... Be5 {[%clk 0:02:07.3]} 35. Rc1 {[%clk 0:01:33.1]} 35...
Bb2 {[%clk 0:02:05.8]} 36. Rc4 {[%clk 0:01:29.8]} 36... Rf6+ {[%clk 0:01:49.3]}
37. Ke2 {[%clk 0:01:24.4]} 37... Bxa3 {[%clk 0:01:41.2]} 38. c6 {[%clk
0:01:22.6]} 38... Re6+ {[%clk 0:01:39.5]} 39. Kd3 {[%clk 0:01:14.4]} 39... Bd6
{[%clk 0:01:29.7]} 40. c7 {[%clk 0:01:08.3]} 40... Bxc7 {[%clk 0:01:28.8]} 41.
Rxc7 {[%clk 0:01:07.8]} 41... Rd6+ {[%clk 0:01:21.7]} 42. Kc4 {[%clk 0:01:03]}
42... Rf6 {[%clk 0:01:17.5]} 43. Bd5 {[%clk 0:00:59.5]} 43... Rf4+ {[%clk
0:01:16.5]} 44. Kc5 {[%clk 0:00:55.7]} 44... Kg6 {[%clk 0:01:13.8]} 45. Kd6
{[%clk 0:00:52.3]} 45... a3 {[%clk 0:01:02.4]} 46. Ra7 {[%clk 0:00:50.7]} 46...
Rf6+ {[%clk 0:00:51.8]} 47. Ke5 {[%clk 0:00:48.9]} 47... Rf4 {[%clk 0:00:47.5]}
48. Be4+ {[%clk 0:00:44.9]} 48... Kg7 {[%clk 0:00:45.4]} 49. Bf5 {[%clk
0:00:42.6]} 49... Rf3 {[%clk 0:00:42.5]} 50. Ke4 {[%clk 0:00:41.8]} 50... Rb3
{[%clk 0:00:39.9]} 51. Be6 {[%clk 0:00:38.3]} 51... Rb4+ {[%clk 0:00:37.2]} 52.
Ke5 {[%clk 0:00:31.6]} 52... Rb5+ {[%clk 0:00:32.8]} 53. Bd5 {[%clk 0:00:28]}
53... Kg6 {[%clk 0:00:29.9]} 54. Rxa3 {[%clk 0:00:24]} 54... f6+ {[%clk
0:00:27.2]} 55. Kd4 {[%clk 0:00:23.4]} 55... Rb4+ {[%clk 0:00:26.1]} 56. Bc4
{[%clk 0:00:22.6]} 56... Rb1 {[%clk 0:00:23.7]} 57. Bd3+ {[%clk 0:00:20.7]} 1-0